fUSD/lending_fUSD_20241219
["ID","MTS","AMOUNT","RATE_DAILY","PERIOD"]
[345969256,1734575444129,-1572.13,0.00023012,4]
[345969258,1734575444139,-500.0,0.00023012,4]
[345969259,1734575444148,-500.0,0.00023012,4]
[345969260,1734575444158,-500.0,0.00023012,4]
[345969261,1734575444167,-500.0,0.00023012,4]
[345969262,1734575444177,-500.0,0.00023012,4]
[345969263,1734575444186,-553.51,0.00023012,4]
[345969264,1734575444196,-500.0,0.00023012,4]
[345969265,1734575444205,-540.82,0.00023012,4]
[345969267,1734575444215,-777.94,0.00023012,4]
[345969268,1734575444224,-500.0,0.00023012,4]
[345969269,1734575444234,-500.0,0.00023012,4]
[345969270,1734575444243,-900.42,0.00023012,4]
[345969271,1734575444252,-659.6,0.00023012,4]
[345969272,1734575444262,-771.09,0.00023012,4]
[345969273,1734575444272,-500.0,0.00023012,4]
[345969274,1734575444282,-500.0,0.00023013,4]
[345969275,1734575444292,-500.0,0.00023013,4]
[345969276,1734575444302,-500.0,0.00023013,4]
[345969277,1734575444311,-500.0,0.00023013,4]
[345969278,1734575444324,-500.0,0.00023013,4]
[345969279,1734575444333,-500.0,0.00023013,4]
[345969280,1734575444343,-1223.41,0.00023013,4]
[345969281,1734575444353,-1146.16,0.00023013,4]
[345969282,1734575444363,-500.0,0.00023013,4]
[345969283,1734575444372,-500.0,0.00023013,4]
[345969284,1734575444382,-500.0,0.00023013,4]
[345969285,1734575444391,-500.0,0.00023013,4]
[345969286,1734575444401,-500.0,0.00023013,4]
[345969287,1734575444411,-500.0,0.00023013,4]
[345969288,1734575444421,-500.0,0.00023013,4]
[345969289,1734575444432,-633.35,0.00023013,4]
[345969290,1734575444445,-500.0,0.00023013,4]
[345969291,1734575444454,-500.0,0.00023013,4]
[345969292,1734575444464,-614.51,0.00023013,4]
[345969293,1734575444474,-500.0,0.00023013,4]
[345969294,1734575444485,-793.7,0.00023013,4]
[345969295,1734575444620,-500.0,0.00023013,4]
[345969296,1734575444659,-500.0,0.00023013,4]
[345969297,1734575444669,-939.73,0.00023013,4]
[345969298,1734575444679,-500.0,0.00023013,4]
[345969299,1734575444689,-619.82,0.00023013,4]
[345969300,1734575444699,-500.0,0.00023013,4]
[345969301,1734575444710,-224.83454574,0.00023013,4]
[345969302,1734575444720,-500.0,0.00023013,4]
[345969303,1734575444730,-500.0,0.00023013,4]
[345969304,1734575444740,-500.0,0.00023013,4]
[345969305,1734575444751,-500.0,0.00023013,4]
[345969306,1734575444761,-500.0,0.00023013,4]
[345969307,1734575444771,-500.0,0.00023013,4]
[345969308,1734575444781,-541.26,0.00023013,4]
[345969309,1734575444790,-500.0,0.00023013,4]
[345969310,1734575444800,-500.0,0.00023013,4]
[345969311,1734575444810,-500.0,0.00023013,4]
[345969312,1734575444821,-830.13,0.00023013,4]
[345969313,1734575444831,-500.0,0.00023013,4]
[345969314,1734575444841,-900.65,0.00023013,4]
[345969315,1734575444851,-500.0,0.00023013,4]
[345969316,1734575444861,-500.0,0.00023013,4]
[345969317,1734575444870,-216.0,0.00023014,2]
[345969318,1734575444879,-609.65640879,0.0002305,2]
[345969319,1734575444888,-1732.59424916,0.00023059,2]
[345969320,1734575444898,-150.0,0.00023112,4]
[345969321,1734575444908,-583.71,0.00023112,2]
[345969322,1734575444918,-1732.59424916,0.00023199,2]
[345969323,1734575444928,-500.0,0.00023285,4]
[345969324,1734575444938,-500.0,0.00023285,4]
[345969325,1734575444948,-500.0,0.00023285,4]
[345969326,1734575444958,-500.0,0.00023285,4]
[345969327,1734575444968,-174.77688286,0.00023285,4]
[345969328,1734575444979,-670.5,0.00023285,4]
[345969329,1734575444989,-1234.71,0.00023285,4]
[345969330,1734575444999,-500.0,0.00023285,4]
[345969331,1734575445009,-646.15,0.00023285,4]
[345969332,1734575445019,-534.78,0.00023285,4]
[345969333,1734575445029,-500.0,0.00023285,4]
[345969334,1734575445039,-500.0,0.00023285,4]
[345969335,1734575445048,-500.0,0.00023285,4]
[345969336,1734575445059,-1617.63,0.00023285,4]
[345969337,1734575445072,-500.0,0.00023285,4]
[345969338,1734575445082,-500.0,0.00023285,4]
[345969339,1734575445093,-500.0,0.00023285,4]
[345969340,1734575445103,-500.0,0.00023285,4]
[345969341,1734575445113,-500.0,0.00023285,4]
[345969342,1734575445124,-879.76,0.00023285,4]
[345969343,1734575445134,-525.61,0.00023285,4]
[345969344,1734575445143,-521.26524403,0.00023286,4]
[345969345,1734575445154,-517.41417059,0.00023286,4]
[345969346,1734575445164,-500.0,0.00023286,4]
[345969347,1734575445174,-500.0,0.00023286,4]
[345969348,1734575445184,-500.0,0.00023286,4]
[345969349,1734575445194,-500.0,0.00023286,4]
[345969350,1734575445204,-500.0,0.00023286,4]
[345969351,1734575445214,-500.0,0.00023286,4]
[345969352,1734575445224,-165.03065071,0.00023286,4]
[345969353,1734575445234,-500.0,0.00023286,4]
[345969354,1734575445244,-500.0,0.00023286,4]
[345969355,1734575445254,-571.95453871,0.00023286,4]
[345969356,1734575445264,-174.44624958,0.00023286,4]
[345969357,1734575445274,-500.0,0.00023286,4]
[345969358,1734575445284,-500.0,0.00023286,4]
[345969359,1734575445293,-312.89867926,0.00023286,4]
[345969360,1734575445303,-367.57616285,0.00023286,4]
[345969361,1734575445312,-550.1188668,0.00023286,4]
[345969362,1734575445324,-504.30942841,0.00023286,4]
[345969363,1734575445334,-389.5031126,0.00023286,4]
[345969364,1734575445345,-500.0,0.00023286,4]
[345969365,1734575445354,-500.0,0.00023286,4]
[345969366,1734575445364,-500.0,0.00023286,4]
[345969367,1734575445373,-458.54078225,0.00023286,4]
[345969368,1734575445383,-500.0,0.00023286,4]
[345969369,1734575445392,-500.0,0.00023286,4]
[345969370,1734575445402,-500.0,0.00023286,4]
[345969371,1734575445411,-1185.63,0.00023286,4]
[345969372,1734575445421,-500.0,0.00023286,4]
[345969373,1734575445433,-500.0,0.00023286,4]
[345969374,1734575445443,-500.0,0.00023286,4]
[345969375,1734575445452,-500.0,0.00023286,4]
[345969376,1734575445462,-500.0,0.00023286,4]
[345969377,1734575445472,-500.0,0.00023286,4]
[345969378,1734575445482,-500.0,0.00023286,4]
[345969379,1734575445492,-500.0,0.00023286,4]
[345969380,1734575445502,-500.0,0.00023286,4]
[345969381,1734575445512,-590.63111394,0.00023286,4]
[345969382,1734575445522,-1014.42,0.00023286,4]
[345969383,1734575445531,-500.0,0.00023286,4]
[345969384,1734575445542,-500.0,0.00023286,4]
[345969385,1734575445551,-500.0,0.00023286,4]
[345969386,1734575445561,-510.76,0.00023286,4]
[345969387,1734575445574,-506.28,0.00023286,4]
[345969388,1734575445583,-500.0,0.00023286,4]
[345969389,1734575445594,-500.0,0.00023286,4]
[345969390,1734575445604,-500.0,0.00023286,4]
[345969391,1734575445614,-683.69,0.00023286,4]
[345969392,1734575445624,-509.55101939,0.00023286,4]
[345969393,1734575445634,-500.0,0.00023286,4]
[345969394,1734575445644,-500.0,0.00023286,4]
[345969395,1734575445654,-650.27,0.00023286,4]
[345969396,1734575445664,-509.525117,0.00023286,4]
[345969397,1734575445673,-298.68773078,0.00023286,4]
[345969398,1734575445683,-500.0,0.00023286,4]
[345969399,1734575445692,-500.0,0.00023286,4]
[345969400,1734575445703,-213.45320885,0.00023286,4]
[345969401,1734575445713,-1260.38,0.00023286,4]
[345969402,1734575445722,-500.0,0.00023286,4]
[345969403,1734575445732,-500.0,0.00023286,4]
[345969404,1734575445742,-500.0,0.00023286,4]
[345969405,1734575445753,-500.0,0.00023286,4]
[345969406,1734575445763,-500.0,0.00023286,4]
[345969407,1734575445773,-500.0,0.00023286,4]
[345969408,1734575445783,-500.0,0.00023286,4]
[345969409,1734575445793,-500.0,0.00023286,4]
[345969410,1734575445803,-500.0,0.00023286,4]
[345969411,1734575445813,-633.11,0.00023286,4]
[345969412,1734575445829,-500.0,0.00023286,4]
[345969413,1734575445840,-244.71779324,0.00023286,4]
[345969414,1734575445849,-500.0,0.00023286,4]
[345969415,1734575445859,-500.0,0.00023286,4]
[345969416,1734575445869,-659.75,0.00023286,4]
[345969417,1734575445879,-500.0,0.00023286,4]
[345969418,1734575445889,-500.0,0.00023286,4]
[345969419,1734575445898,-500.0,0.00023286,4]
[345969420,1734575445908,-475.34733467,0.00023286,4]
[345969421,1734575445917,-844.34,0.00023286,4]
[345969422,1734575445927,-500.0,0.00023286,4]
[345969423,1734575445937,-794.86,0.00023286,4]
[345969424,1734575445946,-500.0,0.00023286,4]
[345969425,1734575445957,-500.0,0.00023286,4]
[345969426,1734575445967,-500.0,0.00023286,4]
[345969427,1734575445976,-500.0,0.00023286,4]
[345969428,1734575445986,-666.98,0.00023286,4]
[345969429,1734575445995,-983.5,0.00023286,4]
[345969430,1734575446005,-500.0,0.00023286,4]
[345969431,1734575446015,-500.0,0.00023286,4]
[345969432,1734575446025,-500.0,0.00023286,4]
[345969433,1734575446035,-500.0,0.00023286,4]
[345969434,1734575446045,-508.7023517,0.00023286,4]
[345969435,1734575446054,-500.0,0.00023286,4]
[345969436,1734575446064,-997.27,0.00023286,4]
[345969440,1734575446079,-578.02,0.00023286,4]
[345969444,1734575446088,-500.0,0.00023286,4]
[345969448,1734575446098,-500.0,0.00023286,4]
[345969452,1734575446107,-500.0,0.00023286,4]
[345969456,1734575446117,-513.66660686,0.00023286,4]
[345969459,1734575446127,-606.81,0.00023286,4]
[345969463,1734575446136,-500.0,0.00023286,4]
[345969465,1734575446145,-500.0,0.00023286,4]
[345969466,1734575446155,-500.0,0.00023286,4]
[345969467,1734575446164,-500.0,0.00023286,4]
[345969468,1734575446174,-1048.28,0.00023286,4]
[345969469,1734575446183,-500.0,0.00023286,4]
[345969470,1734575446193,-500.0,0.00023286,4]
[345969471,1734575446202,-739.19,0.00023286,4]
[345969472,1734575446211,-500.0,0.00023286,4]
[345969473,1734575446221,-1109.91,0.00023286,4]
[345969474,1734575446231,-500.0,0.00023286,4]
[345969475,1734575446240,-500.0,0.00023286,4]
[345969476,1734575446250,-500.0,0.00023286,4]
[345969477,1734575446259,-517.88,0.00023286,4]
[345969478,1734575446269,-908.27,0.00023286,4]
[345969479,1734575446279,-537.74,0.00023286,4]
[345969480,1734575446288,-688.73,0.00023286,4]
[345969481,1734575446298,-515.37,0.00023286,4]
[345969482,1734575446307,-747.99,0.00023286,4]
[345969483,1734575446317,-1205.93,0.00023286,4]
[345969485,1734575446329,-500.0,0.00023286,4]
[345969487,1734575446338,-1343.12,0.00023286,4]
[345969489,1734575446346,-711.86,0.00023286,4]
[345969492,1734575446353,-1205.98,0.00023286,4]
[345969493,1734575446360,-844.19,0.00023286,4]
[345969495,1734575446368,-601.69,0.00023286,7]
[345969498,1734575446375,-2377.26,0.00023286,4]
[345969501,1734575446383,-500.0,0.00023286,4]
[345969502,1734575446390,-500.0,0.00023286,4]
[345969505,1734575446397,-500.0,0.00023286,4]
[345969508,1734575446406,-546.98,0.00023286,4]
[345969512,1734575446415,-500.0,0.00023286,4]
[345969515,1734575446425,-638.66,0.00023286,4]
[345969518,1734575446435,-601.44,0.00023286,4]
[345969520,1734575446447,-639.29,0.00023286,4]
[345969523,1734575446456,-500.0,0.00023286,4]
[345969526,1734575446465,-500.0,0.00023286,4]
[345969528,1734575446477,-674.56,0.00023286,4]
[345969529,1734575446486,-500.0,0.00023286,4]
[345969531,1734575446497,-502.06,0.00023286,4]
[345969533,1734575446506,-592.56,0.00023286,4]
[345969535,1734575446517,-500.0,0.00023286,4]
[345969536,1734575446527,-500.0,0.00023286,4]
[345969538,1734575446536,-549.06,0.00023286,4]
[345969539,1734575446546,-500.0,0.00023286,4]
[345969540,1734575446555,-500.0,0.00023286,4]
[345969541,1734575446565,-1298.92,0.00023286,4]
[345969542,1734575446578,-500.0,0.00023286,4]
[345969543,1734575446588,-745.87,0.00023286,4]
[345969545,1734575446597,-567.54,0.00023286,4]
[345969547,1734575446607,-706.14,0.00023286,4]
[345969548,1734575446617,-500.0,0.00023286,4]
[345969550,1734575446626,-500.0,0.00023286,4]
[345969551,1734575446636,-1136.48,0.00023286,4]
[345969552,1734575446646,-503.33129159,0.00023286,4]
[345969553,1734575446656,-500.0,0.00023286,4]
[345969554,1734575446667,-503.61775574,0.00023286,4]
[345969555,1734575446677,-1358.02,0.00023286,4]
[345969556,1734575446686,-500.0,0.00023286,4]
[345969557,1734575446696,-514.1087391,0.00023286,4]
[345969558,1734575446706,-4447.15,0.00023286,4]
[345969559,1734575446716,-647.12,0.00023286,4]
[345969560,1734575446725,-1392.93,0.00023286,4]
[345969561,1734575446736,-504.34934223,0.00023286,4]
[345969562,1734575446745,-1156.66,0.00023286,4]
[345969563,1734575446755,-556.94,0.00023286,4]
[345969564,1734575446765,-637.75638649,0.00023286,4]
[345969565,1734575446774,-500.0,0.00023286,4]
[345969566,1734575446783,-500.0,0.00023286,4]
[345969567,1734575446793,-635.22,0.00023286,4]
[345969569,1734575446803,-1952.75,0.00023286,4]
[345969571,1734575446813,-500.0,0.00023286,4]
[345969573,1734575446827,-1097.97,0.00023286,4]
[345969574,1734575446836,-384.30548578,0.00023286,4]
[345969575,1734575446846,-500.0,0.00023286,4]
[345969576,1734575446857,-1671.99,0.00023286,4]
[345969577,1734575446867,-500.0,0.00023286,4]
[345969578,1734575446877,-1176.91,0.00023286,4]
[345969579,1734575446886,-500.0,0.00023286,4]
[345969580,1734575446896,-500.0,0.00023286,4]
[345969581,1734575446906,-3037.83,0.00023286,4]
[345969582,1734575446915,-560.72,0.00023286,2]
[345969583,1734575446925,-588.32,0.00023286,4]
[345969584,1734575446934,-796.04,0.00023286,4]
[345969585,1734575446944,-500.0,0.00023286,4]
[345969586,1734575446954,-500.0,0.00023286,4]
[345969587,1734575446964,-500.0,0.00023286,4]
[345969588,1734575446974,-1572.13,0.00023286,4]
[345969589,1734575446984,-500.0,0.00023286,4]
[345969590,1734575446993,-500.0,0.00023286,4]
[345969591,1734575447002,-500.0,0.00023286,4]
[345969592,1734575447012,-500.0,0.00023286,4]
[345969593,1734575447022,-1000.0,0.00023286,4]
[345969595,1734575447032,-500.0,0.00023286,4]
[345969597,1734575447041,-500.0,0.00023286,4]
[345969599,1734575447052,-982.58,0.00023286,4]
[345969601,1734575447062,-500.0,0.00023286,4]
[345969603,1734575447073,-553.51,0.00023286,4]
[345969604,1734575447083,-500.0,0.00023286,4]
[345969605,1734575447093,-540.82,0.00023286,4]
[345969606,1734575447141,-777.94,0.00023286,4]
[345969607,1734575447151,-500.0,0.00023286,4]
[345969608,1734575447161,-1766.66,0.00023286,4]
[345969609,1734575447170,-500.0,0.00023286,4]
[345969610,1734575447180,-900.42,0.00023286,4]
[345969611,1734575447189,-659.6,0.00023286,4]
[345969612,1734575447199,-771.09,0.00023286,4]
[345969613,1734575447208,-500.0,0.00023286,4]
[345969614,1734575447218,-500.0,0.00023287,4]
[345969615,1734575447227,-500.0,0.00023287,4]
[345969616,1734575447236,-500.0,0.00023287,4]
[345969617,1734575447246,-500.0,0.00023287,4]
[345969618,1734575447255,-500.0,0.00023287,4]
[345969619,1734575447265,-500.0,0.00023287,4]
[345969620,1734575447274,-1223.41,0.00023287,4]
[345969621,1734575447284,-1146.16,0.00023287,4]
[345969622,1734575447293,-227.75609156,0.00023287,4]
[345969623,1734575447302,-500.0,0.00023287,4]
[345969624,1734575447311,-500.0,0.00023287,4]
[345969625,1734575447323,-500.0,0.00023287,4]
[345969626,1734575447333,-582.36638922,0.00023287,4]
[345969627,1734575447342,-500.0,0.00023287,4]
[345969628,1734575447351,-500.0,0.00023287,4]
[345969629,1734575447362,-633.35,0.00023287,4]
[345969630,1734575447371,-500.0,0.00023287,4]
[345969631,1734575447380,-220.60838169,0.00023287,4]
[345969632,1734575447389,-614.51,0.00023287,4]
[345969633,1734575447399,-500.0,0.00023287,4]
[345969634,1734575447408,-793.7,0.00023287,4]
[345969635,1734575447418,-576.82711744,0.00023287,4]
[345969636,1734575447427,-500.0,0.00023287,4]
[345969637,1734575447442,-939.73,0.00023287,4]
[345969638,1734575447451,-500.0,0.00023287,4]
[345969639,1734575447460,-619.82,0.00023287,4]
[345969640,1734575447471,-500.0,0.00023287,4]
[345969641,1734575447480,-500.0,0.00023287,4]
[345969642,1734575447490,-1000.0,0.00023287,5]
[345969643,1734575447499,-1000.0,0.00023287,5]
[345969644,1734575447510,-1000.0,0.00023287,5]
[345969645,1734575447519,-1000.0,0.00023287,5]
[345969646,1734575447529,-1000.0,0.00023287,5]
[345969647,1734575447539,-1000.0,0.00023287,5]
[345969648,1734575447549,-500.0,0.00023287,4]
[345969649,1734575447559,-500.0,0.00023287,4]
[345969650,1734575447568,-500.0,0.00023287,4]
[345969651,1734575447581,-500.0,0.00023287,4]
[345969652,1734575447590,-500.0,0.00023287,4]
[345969653,1734575447599,-541.26,0.00023287,4]
[345969654,1734575447609,-500.0,0.00023287,4]
[345969655,1734575447618,-500.0,0.00023287,4]
[345969656,1734575447628,-500.0,0.00023287,4]
[345969657,1734575447638,-830.13,0.00023287,4]
[345969658,1734575447648,-500.0,0.00023287,4]
[345969659,1734575447657,-900.65,0.00023287,4]
[345969660,1734575447667,-500.0,0.00023287,4]
[345969661,1734575447676,-500.0,0.00023287,4]
[345969662,1734575447686,-2111.4363,0.00023298,2]
[345969663,1734575447696,-150.0,0.00023321,4]
[345969664,1734575447706,-150.0,0.00023321,4]
[345969665,1734575447715,-1732.59424916,0.00023339,2]
[345969666,1734575447724,-250.13123006,0.00023339,2]
[345969667,1734575447733,-500.0,0.00023356,2]
[345969668,1734575447742,-200.0,0.00023383,2]
[345969669,1734575447752,-553.99750551,0.0002346,2]
[345969670,1734575447762,-1732.59424916,0.00023479,2]
[345969671,1734575447774,-500.0,0.00023559,4]
[345969672,1734575447784,-500.0,0.00023559,4]
[345969673,1734575447793,-500.0,0.00023559,4]
[345969674,1734575447803,-670.5,0.00023559,4]
[345969675,1734575447812,-1234.71,0.00023559,4]
[345969676,1734575447826,-500.0,0.00023559,4]
[345969677,1734575447836,-646.15,0.00023559,4]
[345969678,1734575447845,-534.78,0.00023559,4]
[345969679,1734575447855,-500.0,0.00023559,4]
[345969680,1734575447865,-500.0,0.00023559,4]
[345969681,1734575447875,-500.0,0.00023559,4]
[345969682,1734575447885,-1617.63,0.00023559,4]
[345969683,1734575447894,-500.0,0.00023559,4]
[345969684,1734575447904,-500.0,0.00023559,4]
[345969685,1734575447913,-500.0,0.00023559,4]
[345969686,1734575447923,-500.0,0.00023559,4]
[345969687,1734575447932,-500.0,0.00023559,4]
[345969688,1734575447942,-879.76,0.00023559,4]
[345969689,1734575447951,-525.61,0.00023559,4]
[345969690,1734575447960,-500.0,0.0002356,4]
[345969691,1734575447969,-500.0,0.0002356,4]
[345969692,1734575447978,-500.0,0.0002356,4]
[345969693,1734575447987,-213.77381575,0.0002356,4]
[345969694,1734575447997,-500.0,0.0002356,4]
[345969695,1734575448006,-500.0,0.0002356,4]
[345969696,1734575448016,-194.53040705,0.0002356,4]
[345969697,1734575448025,-169.51891069,0.0002356,4]
[345969698,1734575448035,-514.0,0.0002356,4]
[345969699,1734575448045,-500.0,0.0002356,4]
[345969700,1734575448054,-290.80480271,0.0002356,4]
[345969701,1734575448063,-500.0,0.0002356,4]
[345969702,1734575448076,-506.80602264,0.0002356,4]
[345969703,1734575448085,-500.0,0.0002356,4]
[345969704,1734575448095,-500.0,0.0002356,4]
[345969705,1734575448105,-500.0,0.0002356,4]
[345969706,1734575448115,-1185.63,0.0002356,4]
[345969707,1734575448124,-500.0,0.0002356,4]
[345969708,1734575448134,-500.0,0.0002356,4]
[345969709,1734575448144,-500.0,0.0002356,4]
[345969710,1734575448154,-500.0,0.0002356,4]
[345969711,1734575448163,-170.57027494,0.0002356,4]
[345969712,1734575448173,-500.0,0.0002356,4]
[345969713,1734575448182,-500.0,0.0002356,4]
[345969714,1734575448192,-509.37743902,0.0002356,4]
[345969715,1734575448201,-500.0,0.0002356,4]
[345969716,1734575448212,-1014.42,0.0002356,4]
[345969717,1734575448223,-500.0,0.0002356,4]
[345969718,1734575448234,-500.0,0.0002356,4]
[345969719,1734575448244,-500.0,0.0002356,4]
[345969720,1734575448254,-510.76,0.0002356,4]
[345969721,1734575448264,-506.28,0.0002356,4]
[345969722,1734575448274,-500.0,0.0002356,4]
[345969723,1734575448284,-500.0,0.0002356,4]
[345969724,1734575448294,-500.0,0.0002356,4]
[345969725,1734575448303,-683.69,0.0002356,4]
[345969726,1734575448313,-500.0,0.0002356,4]
[345969727,1734575448326,-500.0,0.0002356,4]
[345969728,1734575448335,-650.27,0.0002356,4]
[345969729,1734575448343,-500.0,0.0002356,4]
[345969730,1734575448352,-500.0,0.0002356,4]
[345969731,1734575448361,-1260.38,0.0002356,4]
[345969732,1734575448371,-500.0,0.0002356,4]
[345969733,1734575448383,-500.0,0.0002356,4]
[345969734,1734575448393,-390.55312023,0.0002356,4]
[345969735,1734575448405,-500.0,0.0002356,4]
[345969736,1734575448415,-500.0,0.0002356,4]
[345969737,1734575448424,-500.0,0.0002356,4]
[345969738,1734575448436,-500.0,0.0002356,4]
[345969739,1734575448448,-500.0,0.0002356,4]
[345969740,1734575448458,-633.11,0.0002356,4]
[345969741,1734575448467,-500.0,0.0002356,4]
[345969742,1734575448476,-500.0,0.0002356,4]
[345969743,1734575448486,-500.0,0.0002356,4]
[345969744,1734575448495,-659.75,0.0002356,4]
[345969745,1734575448504,-500.0,0.0002356,4]
[345969746,1734575448515,-500.0,0.0002356,4]
[345969747,1734575448526,-500.0,0.0002356,4]
[345969748,1734575448536,-844.34,0.0002356,4]
[345969749,1734575448545,-500.0,0.0002356,4]
[345969750,1734575448555,-794.86,0.0002356,4]
[345969751,1734575448564,-500.0,0.0002356,4]
[345969752,1734575448577,-500.0,0.0002356,4]
[345969753,1734575448587,-500.0,0.0002356,4]
[345969754,1734575448596,-500.0,0.0002356,4]
[345969755,1734575448606,-666.98,0.0002356,4]
[345969756,1734575448616,-490.0,0.0002356,4]
[345969757,1734575448626,-983.5,0.0002356,4]
[345969758,1734575448636,-500.0,0.0002356,4]
[345969759,1734575448646,-500.0,0.0002356,4]
[345969760,1734575448657,-500.0,0.0002356,4]
[345969761,1734575448667,-500.0,0.0002356,4]
[345969762,1734575448678,-997.27,0.0002356,4]
[345969763,1734575448688,-578.02,0.0002356,4]
[345969764,1734575448700,-500.0,0.0002356,4]
[345969765,1734575448710,-500.0,0.0002356,4]
[345969766,1734575448719,-500.0,0.0002356,4]
[345969767,1734575448729,-606.81,0.0002356,4]
[345969768,1734575448739,-500.0,0.0002356,4]
[345969769,1734575448749,-500.0,0.0002356,4]
[345969770,1734575448759,-500.0,0.0002356,4]
[345969771,1734575448770,-500.0,0.0002356,4]
[345969772,1734575448780,-1048.28,0.0002356,4]
[345969773,1734575448790,-500.0,0.0002356,4]
[345969774,1734575448801,-500.0,0.0002356,4]
[345969775,1734575448811,-739.19,0.0002356,4]
[345969776,1734575448821,-500.0,0.0002356,4]
[345969777,1734575448838,-1109.91,0.0002356,4]
[345969778,1734575448848,-568.11167604,0.0002356,4]
[345969779,1734575448858,-500.0,0.0002356,4]
[345969780,1734575448868,-500.0,0.0002356,4]
[345969781,1734575448878,-517.88,0.0002356,4]
[345969782,1734575448888,-908.27,0.0002356,4]
[345969783,1734575448898,-537.74,0.0002356,4]
[345969784,1734575448908,-688.73,0.0002356,4]
[345969785,1734575448919,-515.37,0.0002356,4]
[345969786,1734575448928,-747.99,0.0002356,4]
[345969787,1734575448938,-1205.93,0.0002356,4]
[345969788,1734575448949,-500.0,0.0002356,4]
[345969789,1734575448959,-1343.12,0.0002356,4]
[345969790,1734575448969,-711.86,0.0002356,4]
[345969791,1734575448978,-1205.98,0.0002356,4]
[345969792,1734575448988,-601.69,0.0002356,7]
[345969793,1734575448998,-844.19,0.0002356,4]
[345969794,1734575449007,-2377.26,0.0002356,4]
[345969795,1734575449017,-500.0,0.0002356,4]
[345969796,1734575449026,-500.0,0.0002356,4]
[345969797,1734575449036,-610.7410826,0.0002356,4]
[345969798,1734575449046,-546.98,0.0002356,4]
[345969799,1734575449055,-500.0,0.0002356,4]
[345969800,1734575449065,-638.66,0.0002356,4]
[345969801,1734575449079,-601.44,0.0002356,4]
[345969802,1734575449089,-639.29,0.0002356,4]
[345969803,1734575449099,-500.0,0.0002356,4]
[345969804,1734575449109,-500.0,0.0002356,4]
[345969805,1734575449120,-674.56,0.0002356,4]
[345969806,1734575449130,-578.58433044,0.0002356,4]
[345969807,1734575449141,-502.06,0.0002356,4]
[345969808,1734575449151,-592.56,0.0002356,4]
[345969809,1734575449161,-500.0,0.0002356,4]
[345969810,1734575449170,-500.0,0.0002356,4]
[345969811,1734575449180,-549.06,0.0002356,4]
[345969812,1734575449190,-500.0,0.0002356,4]
[345969813,1734575449199,-500.0,0.0002356,4]
[345969814,1734575449210,-1298.92,0.0002356,4]
[345969815,1734575449219,-500.0,0.0002356,4]
[345969816,1734575449230,-745.87,0.0002356,4]
[345969817,1734575449240,-567.54,0.0002356,4]
[345969818,1734575449250,-706.14,0.0002356,4]
[345969819,1734575449261,-500.0,0.0002356,4]
[345969820,1734575449270,-500.0,0.0002356,4]